fUST/lending_fUST_20240624
["ID","MTS","AMOUNT","RATE_DAILY","PERIOD"]
[330247692,1719206841891,-10991.53,0.00016438,2]
[330247693,1719206841912,-500.0,0.00016438,2]
[330247694,1719206841933,-502.53,0.00016438,2]
[330247695,1719206841953,-500.0,0.00016438,2]
[330247696,1719206841973,-500.0,0.00016438,2]
[330247697,1719206841998,-500.0,0.00016438,2]
[330247698,1719206842017,-500.0,0.00016438,2]
[330247699,1719206842037,-3038.91,0.00016438,2]
[330247700,1719206842055,-500.0,0.00016438,2]
[330247701,1719206842075,-5288.5,0.00016438,2]
[330247702,1719206842095,-1191.46,0.00016438,2]
[330247703,1719206842114,-500.0,0.00016438,2]
[330247704,1719206842137,-500.0,0.00016438,2]
[330247705,1719206842156,-24909.87,0.00016438,2]
[330247706,1719206842177,-155.67434626,0.00016452,2]
[330247707,1719206842196,-2040.81356743,0.00016461,2]
[330247708,1719206842217,-627.00263973,0.00016466,2]
[330247709,1719206842238,-723.78639686,0.00016492,2]
[330247710,1719206842257,-876.0,0.00016493,2]
[330247711,1719206842278,-276.08930439,0.000165,2]
[330247712,1719206842298,-306.0,0.000165,2]
[330247713,1719206842320,-531.11088939,0.00016525,2]
[330247714,1719206842339,-177.0126434,0.00016544,2]
[330247715,1719206842360,-154.79103211,0.0001657,2]
[330247716,1719206842379,-272.24008301,0.0001657,2]
[330247717,1719206842399,-157.0,0.0001658,2]
[330247718,1719206842419,-11118.98907716,0.00016711,2]
[330247719,1719206842440,-500.0,0.00016712,2]
[330247720,1719206842460,-707.2,0.00016712,2]
[330247721,1719206842479,-273.75976859,0.00016712,2]
[330247722,1719206842501,-500.0,0.00016712,2]
[330247723,1719206842521,-507.22,0.00016712,2]
[330247724,1719206842541,-500.0,0.00016712,2]
[330247725,1719206842560,-500.0,0.00016712,2]
[330247726,1719206842580,-500.0,0.00016712,2]
[330247727,1719206842600,-500.0,0.00016712,2]
[330247728,1719206842619,-500.0,0.00016712,2]
[330247729,1719206842638,-500.0,0.00016712,2]
[330247730,1719206842657,-919.16,0.00016712,2]
[330247731,1719206842676,-500.0,0.00016712,2]
[330247732,1719206842695,-500.0,0.00016712,2]
[330247733,1719206842716,-500.0,0.00016712,2]
[330247734,1719206842739,-500.0,0.00016712,2]
[330247735,1719206842760,-500.0,0.00016712,2]
[330247736,1719206842781,-925.34,0.00016712,2]
[330247737,1719206842801,-500.0,0.00016712,2]
[330247738,1719206842821,-500.0,0.00016712,2]
[330247739,1719206842841,-500.0,0.00016712,2]
[330247740,1719206842861,-916.22,0.00016712,2]
[330247741,1719206842881,-500.0,0.00016712,2]
[330247742,1719206842901,-737.5,0.00016712,2]
[330247743,1719206842921,-605.21,0.00016712,2]
[330247744,1719206842942,-1759.83,0.00016712,2]
[330247745,1719206842962,-500.0,0.00016712,2]
[330247746,1719206842982,-1051.21,0.00016712,2]
[330247747,1719206843003,-530.31,0.00016712,2]
[330247748,1719206843025,-500.0,0.00016712,2]
[330247749,1719206843061,-443.49882441,0.00016712,2]
[330247750,1719206843087,-574.55,0.00016712,2]
[330247751,1719206843108,-500.0,0.00016712,2]
[330247752,1719206843128,-549.63,0.00016712,2]
[330247753,1719206843147,-1075.72,0.00016712,2]
[330247754,1719206843171,-500.0,0.00016712,2]
[330247755,1719206843192,-500.0,0.00016712,2]
[330247756,1719206843212,-500.0,0.00016712,2]
[330247757,1719206843236,-500.0,0.00016712,2]
[330247758,1719206843257,-510.17,0.00016712,2]
[330247759,1719206843277,-500.0,0.00016712,2]
[330247760,1719206843297,-500.0,0.00016712,2]
[330247761,1719206843317,-759.34,0.00016712,2]
[330247762,1719206843336,-500.0,0.00016712,2]
[330247763,1719206843355,-740.94,0.00016712,2]
[330247764,1719206843374,-858.28,0.00016712,2]
[330247765,1719206843393,-500.0,0.00016712,2]
[330247766,1719206843413,-506.54,0.00016712,2]
[330247767,1719206843434,-500.0,0.00016712,2]
[330247768,1719206843453,-688.8,0.00016712,2]
[330247769,1719206843473,-500.0,0.00016712,2]
[330247770,1719206843495,-2084.16,0.00016712,2]
[330247771,1719206843514,-500.0,0.00016712,2]
[330247772,1719206843533,-1769.58,0.00016712,2]
[330247773,1719206843552,-500.0,0.00016712,2]
[330247774,1719206843572,-500.0,0.00016712,2]
[330247775,1719206843591,-500.0,0.00016712,2]
[330247776,1719206843612,-500.0,0.00016712,2]
[330247777,1719206843632,-500.0,0.00016712,2]
[330247778,1719206843652,-798.86,0.00016712,2]
[330247779,1719206843671,-500.0,0.00016712,2]
[330247780,1719206843691,-500.0,0.00016712,2]
[330247781,1719206843713,-955.67,0.00016712,2]
[330247782,1719206843733,-500.0,0.00016712,2]
[330247783,1719206843753,-599.19,0.00016712,2]
[330247784,1719206843774,-4235.26,0.00016712,2]
[330247785,1719206843794,-15977.25,0.00016712,2]
[330247786,1719206843814,-500.0,0.00016712,2]
[330247787,1719206843835,-500.0,0.00016712,2]
[330247788,1719206843855,-678.84,0.00016712,2]
[330247789,1719206843876,-500.0,0.00016712,2]
[330247790,1719206843899,-500.0,0.00016712,2]
[330247791,1719206843923,-1097.52,0.00016712,2]
[330247792,1719206843945,-1605.11,0.00016712,2]
[330247793,1719206843965,-500.0,0.00016712,2]
[330247794,1719206843990,-2202.46,0.00016712,2]
[330247795,1719206844010,-1043.69,0.00016712,2]
[330247796,1719206844034,-500.0,0.00016712,2]
[330247797,1719206844055,-755.49,0.00016712,2]
[330247798,1719206844074,-612.08,0.00016712,2]
[330247799,1719206844095,-955.22,0.00016712,2]
[330247800,1719206844116,-1253.36,0.00016712,2]
[330247801,1719206844143,-500.0,0.00016712,2]
[330247802,1719206844164,-4179.54,0.00016712,2]
[330247803,1719206844186,-500.0,0.00016712,2]
[330247804,1719206844206,-282.28482684,0.00016712,2]
[330247805,1719206844229,-4961.02,0.00016712,2]
[330247806,1719206844253,-500.0,0.00016712,2]
[330247807,1719206844274,-707.96,0.00016712,2]
[330247808,1719206844295,-500.0,0.00016712,2]
[330247809,1719206844315,-922.56,0.00016712,2]
[330247810,1719206844335,-500.0,0.00016712,2]
[330247811,1719206844356,-500.0,0.00016712,2]
[330247812,1719206844375,-500.0,0.00016712,2]
[330247813,1719206844395,-500.0,0.00016712,2]
[330247814,1719206844544,-772.5,0.00016712,2]
[330247815,1719206844565,-533.02,0.00016712,2]
[330247816,1719206844586,-2055.5,0.00016712,2]
[330247817,1719206844607,-1440.96,0.00016712,2]
[330247818,1719206844628,-773.31,0.00016712,2]
[330247819,1719206844648,-476.34753,0.00016712,2]
[330247820,1719206844668,-476.34753,0.00016712,2]
[330247821,1719206844689,-476.34753,0.00016712,2]
[330247822,1719206844709,-476.34753,0.00016712,2]
[330247823,1719206844729,-476.34753,0.00016712,2]
[330247824,1719206844754,-476.34753,0.00016712,2]
[330247825,1719206844774,-2776.64,0.00016712,2]
[330247826,1719206844795,-476.34753,0.00016712,2]
[330247827,1719206844816,-476.34753,0.00016712,2]
[330247828,1719206844840,-476.34753,0.00016712,2]
[330247829,1719206844863,-476.347532,0.00016712,2]
[330247830,1719206844884,-500.0,0.00016712,2]
[330247831,1719206844906,-3235.76,0.00016712,2]
[330247832,1719206844926,-500.0,0.00016712,2]
[330247833,1719206844946,-500.0,0.00016712,2]
[330247834,1719206844966,-658.16,0.00016712,2]
[330247835,1719206844986,-16189.28,0.00016712,2]
[330247836,1719206845007,-1196.31,0.00016712,2]
[330247837,1719206845028,-632.66,0.00016712,2]
[330247838,1719206845048,-500.0,0.00016712,2]
[330247839,1719206845070,-500.0,0.00016712,2]
[330247840,1719206845090,-500.0,0.00016712,2]
[330247841,1719206845112,-500.0,0.00016712,2]
[330247842,1719206845135,-500.0,0.00016712,2]
[330247843,1719206845160,-4816.23,0.00016712,2]
[330247844,1719206845181,-4688.9,0.00016712,2]
[330247845,1719206845202,-500.0,0.00016712,2]
[330247846,1719206845226,-500.0,0.00016712,2]
[330247847,1719206845249,-1064.19,0.00016712,2]
[330247848,1719206845269,-417.6,0.00016712,2]
[330247849,1719206845289,-500.0,0.00016712,2]
[330247850,1719206845309,-151.5,0.00016712,2]
[330247851,1719206845330,-10991.53,0.00016712,2]
[330247852,1719206845350,-500.0,0.00016712,2]
[330247853,1719206845371,-502.53,0.00016712,2]
[330247854,1719206845391,-500.0,0.00016712,2]
[330247855,1719206845412,-471.36530676,0.00016712,2]
[330247856,1719206845432,-500.0,0.00016712,2]
[330247857,1719206845454,-309.87755342,0.00016712,2]
[330247858,1719206846324,-292.99777244,0.00015838,2]
[330247859,1719206846343,-159.35965211,0.00016192,2]
[330247860,1719206846364,-500.0,0.00016438,2]
[330247861,1719206846384,-2040.81356743,0.00016452,2]
[330247862,1719206846403,-723.78639686,0.00016489,2]
[330247863,1719206846424,-2729.03244658,0.00016712,2]
[330247864,1719206846446,-500.0,0.00016712,2]
[330247865,1719206846468,-5288.5,0.00016712,2]
[330247866,1719206846490,-1191.46,0.00016712,2]
[330247867,1719206846510,-500.0,0.00016712,2]
[330247868,1719206846529,-500.0,0.00016712,2]
[330247869,1719206846550,-24909.87,0.00016712,2]
[330247870,1719206846570,-183.753107,0.00016974,2]
[330247871,1719206846592,-500.0,0.00016986,2]
[330247872,1719206846614,-707.2,0.00016986,2]
[330247873,1719206846634,-500.0,0.00016986,2]
[330247874,1719206846655,-507.22,0.00016986,2]
[330247875,1719206846676,-500.0,0.00016986,2]
[330247876,1719206846697,-500.0,0.00016986,2]
[330247877,1719206846718,-500.0,0.00016986,2]
[330247878,1719206846738,-500.0,0.00016986,2]
[330247879,1719206846764,-500.0,0.00016986,2]
[330247880,1719206846789,-500.0,0.00016986,2]
[330247881,1719206846809,-919.16,0.00016986,2]
[330247882,1719206846829,-500.0,0.00016986,2]
[330247883,1719206846849,-500.0,0.00016986,2]
[330247884,1719206846888,-502.59021124,0.00016986,2]
[330247885,1719206846912,-500.0,0.00016986,2]
[330247886,1719206846936,-925.34,0.00016986,2]
[330247887,1719206846958,-500.0,0.00016986,2]
[330247888,1719206846979,-500.0,0.00016986,2]
[330247889,1719206847010,-500.0,0.00016986,2]
[330247890,1719206847031,-916.22,0.00016986,2]
[330247891,1719206847053,-500.0,0.00016986,2]
[330247892,1719206847073,-737.5,0.00016986,2]
[330247893,1719206847094,-605.21,0.00016986,2]
[330247894,1719206847303,-1759.83,0.00016986,2]
[330247895,1719206847322,-500.0,0.00016986,2]
[330247896,1719206847342,-1051.21,0.00016986,2]
[330247897,1719206847361,-530.31,0.00016986,2]
[330247898,1719206847381,-500.0,0.00016986,2]
[330247899,1719206847402,-574.55,0.00016986,2]
[330247900,1719206847422,-500.0,0.00016986,2]
[330247901,1719206847444,-549.63,0.00016986,2]
[330247902,1719206847464,-1075.72,0.00016986,2]
[330247903,1719206847484,-500.0,0.00016986,2]
[330247904,1719206847505,-500.0,0.00016986,2]
[330247905,1719206847524,-500.0,0.00016986,2]
[330247906,1719206847544,-500.0,0.00016986,2]
[330247907,1719206847564,-510.17,0.00016986,2]
[330247908,1719206847585,-500.0,0.00016986,2]
[330247909,1719206847606,-500.0,0.00016986,2]
[330247910,1719206847627,-759.34,0.00016986,2]
[330247911,1719206847648,-500.0,0.00016986,2]
[330247912,1719206847669,-740.94,0.00016986,2]
[330247913,1719206847689,-858.28,0.00016986,2]
[330247914,1719206847711,-500.0,0.00016986,2]
[330247915,1719206847735,-506.54,0.00016986,2]
[330247916,1719206847760,-485.72693528,0.00016986,2]
[330248179,1719207038844,-164.76717871,0.00015501,2]
[330248180,1719207038856,-933.08575257,0.00015745,2]
[330248181,1719207038867,-620.00710685,0.00016156,2]
[330248182,1719207038877,-627.00263973,0.00016434,2]
[330248183,1719207038887,-500.0,0.00016438,2]
[330248184,1719207038897,-500.0,0.00016438,2]
[330248185,1719207038908,-618.8,0.00016438,2]
[330248186,1719207038918,-227.4352244,0.00016438,2]
[330248187,1719207038929,-876.03,0.00016438,2]
[330248188,1719207038940,-1471.35,0.00016438,2]
[330248189,1719207038952,-809.68,0.00016438,2]
[330248190,1719207038962,-732.29,0.00016438,2]
[330248191,1719207038972,-1835.38,0.00016438,2]
[330248192,1719207038981,-500.0,0.00016438,2]
[330248193,1719207038992,-561.08,0.00016438,2]
[330248194,1719207039001,-500.0,0.00016438,2]
[330248195,1719207039012,-500.0,0.00016438,2]
[330248196,1719207039023,-1006.06,0.00016438,2]
[330248197,1719207039033,-801.69,0.00016438,2]
[330248198,1719207039043,-3831.24,0.00016438,2]
[330248199,1719207039054,-3882.33,0.00016438,2]
[330248200,1719207039064,-500.0,0.00016438,2]
[330248201,1719207039074,-645.31,0.00016438,2]
[330248202,1719207039085,-500.0,0.00016438,2]
[330248203,1719207039095,-875.62,0.00016438,2]
[330248204,1719207039106,-14645.81,0.00016438,2]
[330248205,1719207039116,-692.53,0.00016438,2]
[330248206,1719207039126,-1539.85,0.00016438,2]
[330248207,1719207039136,-500.0,0.00016438,2]
[330248208,1719207039146,-919.8,0.00016438,2]
[330248209,1719207039157,-500.0,0.00016438,2]
[330248210,1719207039167,-708.12,0.00016438,2]
[330248211,1719207039178,-500.0,0.00016438,2]
[330248212,1719207039188,-2545.25,0.00016438,2]
[330248213,1719207039207,-500.0,0.00016438,2]
[330248214,1719207039217,-648.96,0.00016438,2]
[330248215,1719207039227,-500.0,0.00016438,2]
[330248216,1719207039237,-500.0,0.00016438,2]
[330248217,1719207039250,-500.0,0.00016438,2]
[330248218,1719207039259,-845.68,0.00016438,2]
[330248219,1719207039269,-511.50596526,0.00016438,2]
[330248220,1719207039281,-500.0,0.00016438,2]
[330248221,1719207039292,-500.0,0.00016438,2]
[330248222,1719207039302,-1884.21,0.00016438,2]
[330248223,1719207039312,-500.0,0.00016438,2]
[330248224,1719207039321,-1320.88,0.00016438,2]
[330248225,1719207039332,-500.0,0.00016438,2]
[330248226,1719207039341,-4414.88,0.00016438,2]
[330248227,1719207039351,-2966.11,0.00016438,2]
[330248228,1719207039362,-502.73,0.00016438,2]
[330248229,1719207039372,-14840.18,0.00016438,2]
[330248230,1719207039383,-10075.57,0.00016438,2]
[330248231,1719207039392,-975.51,0.00016438,2]
[330248232,1719207039402,-500.0,0.00016438,2]
[330248233,1719207039412,-941.26,0.00016438,2]
[330248234,1719207039421,-2785.66,0.00016438,2]
[330248235,1719207039431,-154.77557542,0.00016522,2]
[330248236,1719207039444,-876.0,0.00016547,2]
[330248237,1719207039456,-4547.6,0.00016711,2]
[330248238,1719207039466,-1096.62,0.00016711,2]
[330248239,1719207039476,-4298.16,0.00016711,2]
[330248240,1719207039486,-500.0,0.00016711,2]
[330248241,1719207039497,-500.0,0.00016711,2]
[330248242,1719207039506,-500.0,0.00016711,2]
[330248243,1719207039520,-483.05447721,0.00016711,2]
[330248244,1719207039530,-500.0,0.00016711,2]
[330248245,1719207039540,-500.0,0.00016712,2]
[330248246,1719207039549,-500.0,0.00016712,2]
[330248247,1719207039559,-618.8,0.00016712,2]
[330248248,1719207039569,-876.03,0.00016712,2]
[330248249,1719207039579,-1471.35,0.00016712,2]
[330248250,1719207039588,-809.68,0.00016712,2]
[330248251,1719207039598,-732.29,0.00016712,2]
[330248252,1719207039608,-1835.38,0.00016712,2]
[330248253,1719207039617,-500.0,0.00016712,2]
[330248254,1719207039627,-561.08,0.00016712,2]
[330248255,1719207039638,-500.0,0.00016712,2]
[330248256,1719207039652,-500.0,0.00016712,2]
[330248257,1719207039662,-1006.06,0.00016712,2]
[330248258,1719207039672,-801.69,0.00016712,2]
[330248259,1719207039682,-3831.24,0.00016712,2]
[330248260,1719207039694,-3882.33,0.00016712,2]
[330248261,1719207039703,-500.0,0.00016712,2]
[330248262,1719207039713,-645.31,0.00016712,2]
[330248263,1719207039723,-500.0,0.00016712,2]
[330248264,1719207039733,-875.62,0.00016712,2]
[330248265,1719207039743,-14645.81,0.00016712,2]
[330248266,1719207039753,-692.53,0.00016712,2]
[330248267,1719207039763,-1539.85,0.00016712,2]
[330248268,1719207039773,-500.0,0.00016712,2]
[330248269,1719207039783,-500.0,0.00016712,2]
[330248270,1719207039793,-919.8,0.00016712,2]
[330248271,1719207039804,-708.12,0.00016712,2]
[330248272,1719207039814,-500.0,0.00016712,2]
[330248273,1719207039825,-2545.25,0.00016712,2]
[330248274,1719207039835,-500.0,0.00016712,2]
[330248275,1719207039846,-648.96,0.00016712,2]
[330248276,1719207039856,-500.0,0.00016712,2]
[330248277,1719207039867,-500.0,0.00016712,2]
[330248278,1719207039877,-500.0,0.00016712,2]
[330248279,1719207039886,-845.68,0.00016712,2]
[330248280,1719207039897,-500.0,0.00016712,2]
[330248281,1719207039907,-500.0,0.00016712,2]
[330248282,1719207039917,-1884.21,0.00016712,2]
[330248283,1719207039927,-500.0,0.00016712,2]
[330248284,1719207039937,-1320.88,0.00016712,2]
[330248285,1719207039950,-500.0,0.00016712,2]
[330248286,1719207039960,-4414.88,0.00016712,2]
[330248287,1719207039971,-2966.11,0.00016712,2]
[330248288,1719207039981,-502.73,0.00016712,2]
[330248289,1719207039991,-14840.18,0.00016712,2]
[330248290,1719207040000,-10075.57,0.00016712,2]
[330248291,1719207040011,-975.51,0.00016712,2]
[330248292,1719207040021,-500.0,0.00016712,2]
[330248293,1719207040031,-941.26,0.00016712,2]
[330248294,1719207040041,-2785.66,0.00016712,2]
[330248295,1719207040051,-620.00035534,0.00016963,2]
[330248296,1719207040061,-4547.6,0.00016985,2]
[330248297,1719207040071,-1096.62,0.00016985,2]
[330248298,1719207040080,-4298.16,0.00016985,2]
[330248301,1719207040236,-500.0,0.00016985,2]
[330248302,1719207040248,-500.0,0.00016985,2]
[330248303,1719207040258,-270.92907727,0.00016985,2]
[330248304,1719207040268,-500.0,0.00016985,2]
[330248305,1719207040279,-14.27306472,0.00016986,2]
[330248306,1719207040293,-688.8,0.00016986,2]
[330248307,1719207040304,-469.10165251,0.00016986,2]
[330248308,1719207040314,-2084.16,0.00016986,2]
[330248309,1719207040324,-416.09923002,0.00016986,2]
[330248310,1719207040334,-500.0,0.00016986,2]
[330248311,1719207040344,-500.0,0.00016986,2]
[330248312,1719207040354,-500.0,0.00016986,2]
[330248313,1719207040364,-500.0,0.00016986,2]
[330248314,1719207040374,-500.0,0.00016986,2]
[330248315,1719207040384,-599.19,0.00016986,2]
[330248316,1719207040394,-500.0,0.00016986,2]
[330248317,1719207040404,-500.0,0.00016986,2]
[330248318,1719207040414,-500.0,0.00016986,2]
[330248319,1719207040424,-678.84,0.00016986,2]
[330248320,1719207040434,-500.0,0.00016986,2]
[330248321,1719207040445,-1043.69,0.00016986,2]
[330248322,1719207040456,-1253.36,0.00016986,2]
[330248323,1719207040466,-500.0,0.00016986,2]
[330248324,1719207040476,-500.0,0.00016986,2]
[330248325,1719207040486,-500.0,0.00016986,2]
[330248326,1719207040496,-500.0,0.00016986,2]
[330248327,1719207040506,-500.0,0.00016986,2]
[330248328,1719207040516,-533.02,0.00016986,2]
[330248329,1719207040526,-773.31,0.00016986,2]
[330248330,1719207040536,-500.0,0.00016986,2]
[330248331,1719207040546,-632.66,0.00016986,2]
[330248332,1719207040555,-500.0,0.00016986,2]
[330248333,1719207040565,-500.0,0.00016986,2]
[330248334,1719207040575,-500.0,0.00016986,2]
[330248335,1719207040585,-500.0,0.00016986,2]
[330248336,1719207040595,-500.0,0.00016986,2]
[330248337,1719207040605,-417.6,0.00016986,2]
[330248338,1719207040615,-151.5,0.00016986,2]
[330248339,1719207040625,-500.0,0.00016986,2]
[330248340,1719207040635,-502.53,0.00016986,2]
[330248341,1719207040645,-500.0,0.00016986,2]
[330248342,1719207040655,-500.0,0.00016986,2]
[330248343,1719207040665,-500.0,0.00016986,2]
[330248344,1719207040676,-5288.5,0.00016986,2]
[330248345,1719207040687,-1191.46,0.00016986,2]
[330248346,1719207040699,-500.0,0.00016986,2]
[330248347,1719207040708,-500.0,0.00016986,2]
[330248348,1719207040718,-24909.87,0.00016986,2]
[330248349,1719207040728,-500.0,0.00016986,2]
[330248350,1719207040738,-500.0,0.00016986,2]
[330248351,1719207040749,-618.8,0.00016986,2]
[330248352,1719207040759,-876.03,0.00016986,2]
[330248353,1719207040770,-1471.35,0.00016986,2]
[330248354,1719207040780,-809.68,0.00016986,2]
[330248355,1719207040791,-732.29,0.00016986,2]
[330248356,1719207040801,-1835.38,0.00016986,2]
[330248357,1719207040812,-500.0,0.00016986,2]
[330248358,1719207040822,-561.08,0.00016986,2]
[330248359,1719207040833,-500.0,0.00016986,2]
[330248360,1719207040843,-500.0,0.00016986,2]
[330248361,1719207040853,-1006.06,0.00016986,2]
[330248362,1719207040863,-801.69,0.00016986,2]
[330248363,1719207040874,-3831.24,0.00016986,2]
[330248364,1719207040884,-3882.33,0.00016986,2]
[330248365,1719207040894,-500.0,0.00016986,2]
[330248366,1719207040904,-645.31,0.00016986,2]
[330248367,1719207040914,-287.09196786,0.00016986,2]
[330248368,1719207040924,-459.35349021,0.00016986,2]
[330248369,1719207040934,-875.62,0.00016986,2]
[330248370,1719207040945,-14645.81,0.00016986,2]
[330248371,1719207040955,-692.53,0.00016986,2]
[330248372,1719207040966,-1539.85,0.00016986,2]
[330248373,1719207040977,-500.0,0.00016986,2]
[330248374,1719207040987,-919.8,0.00016986,2]
[330248375,1719207040998,-500.0,0.00016986,2]
[330248376,1719207041009,-708.12,0.00016986,2]
[330248377,1719207041020,-500.0,0.00016986,2]
[330248378,1719207041030,-2545.25,0.00016986,2]
[330248379,1719207041041,-500.0,0.00016986,2]
[330248380,1719207041052,-648.96,0.00016986,2]
[330248381,1719207041062,-500.0,0.00016986,2]
[330248382,1719207041072,-500.0,0.00016986,2]
[330248383,1719207041082,-500.0,0.00016986,2]
[330248384,1719207041092,-845.68,0.00016986,2]
[330248385,1719207041103,-500.0,0.00016986,2]
[330248386,1719207041113,-500.0,0.00016986,2]
[330248387,1719207041124,-1884.21,0.00016986,2]
[330248388,1719207041134,-500.0,0.00016986,2]
[330248389,1719207041144,-1320.88,0.00016986,2]
[330248390,1719207041154,-500.0,0.00016986,2]
[330248391,1719207041164,-4414.88,0.00016986,2]
[330248392,1719207041174,-2966.11,0.00016986,2]
[330248393,1719207041183,-502.73,0.00016986,2]
[330248394,1719207041196,-5689.79274835,0.00016986,2]
[330248491,1719207044301,-9150.38725165,0.00016986,2]
[330248492,1719207044311,-10075.57,0.00016986,2]
[330248494,1719207044321,-975.51,0.00016986,2]
[330248496,1719207044330,-500.0,0.00016986,2]
[330248498,1719207044339,-941.26,0.00016986,2]
[330248500,1719207044349,-2785.66,0.00016986,2]
[330248502,1719207044358,-16959.93209232,0.00016998,2]
[330248503,1719207044367,-164.15080179,0.00016999,2]
[330248505,1719207044377,-500.0,0.00017,2]
[330248507,1719207044386,-2647.51345546,0.00017014,2]
[330248509,1719207044396,-153.0,0.00017015,2]
[330248511,1719207044406,-153.0,0.00017015,2]
[330248513,1719207044415,-153.0,0.00017015,2]
[330248515,1719207044424,-153.0,0.00017015,2]
[330248516,1719207044433,-153.0,0.00017015,2]
[330248518,1719207044443,-153.0,0.00017015,2]
[330248519,1719207044456,-153.0,0.00017015,2]
[330248520,1719207044465,-2115.26284951,0.00017081,2]
[330248521,1719207044476,-301.99780934,0.00017082,2]
[330248522,1719207044485,-2129.2320514,0.00017176,2]
[330248523,1719207044495,-183.753107,0.00017186,2]
[330248524,1719207044505,-154.77557542,0.00017199,2]
[330248525,1719207044514,-10348.77957233,0.000172,2]
[330248548,1719207044866,-153.0,0.00017015,2]
[330248549,1719207044875,-249.852,0.000172,2]
[330248550,1719207044887,-6265.3,0.000172,2]
[330248551,1719207044899,-1003.44840239,0.000172,2]
[330248588,1719207206903,3000.0,0.000225,30]
[330248604,1719207808019,3000.0,0.000225,30]
[330248605,1719207819714,991.33,0.000225,30]
[330248606,1719207836387,991.32,0.000225,30]
[330248609,1719208142013,-627.00263973,0.0001559,2]
[330248610,1719208142038,-154.77557542,0.00015934,2]
[330248611,1719208142066,-202.163109,0.00016259,2]
[330248612,1719208142095,-500.0,0.00016438,2]
[330248613,1719208142124,-500.0,0.00016438,2]
[330248614,1719208142151,-500.0,0.00016438,2]
[330248615,1719208142179,-479.20126166,0.00016438,2]
[330248616,1719208142205,-823.6,0.00016438,2]
[330248617,1719208142230,-500.0,0.00016438,2]
[330248618,1719208142262,-500.0,0.00016438,2]
[330248619,1719208142287,-500.0,0.00016438,2]
[330248620,1719208142312,-500.0,0.00016438,2]
[330248621,1719208142337,-500.0,0.00016438,2]
[330248622,1719208142361,-500.0,0.00016438,2]
[330248623,1719208142387,-751.0,0.00016438,2]
[330248624,1719208142412,-500.0,0.00016438,2]
[330248625,1719208142437,-1823.64,0.00016438,2]
[330248626,1719208142462,-500.0,0.00016438,2]
[330248627,1719208142487,-500.0,0.00016438,2]
[330248628,1719208142519,-593.98,0.00016438,2]
[330248629,1719208142545,-500.0,0.00016438,2]
[330248630,1719208142572,-913.23,0.00016438,2]
[330248631,1719208142598,-500.0,0.00016438,2]
[330248632,1719208142625,-1096.69,0.00016438,2]
[330248633,1719208142651,-500.0,0.00016438,2]
[330248634,1719208142677,-739.97,0.00016438,2]
[330248635,1719208142703,-603.31,0.00016438,2]
[330248636,1719208142728,-500.0,0.00016438,2]
[330248637,1719208142760,-500.0,0.00016438,2]
[330248638,1719208142785,-1005.23,0.00016438,2]